[Event "Late-Titled-Tuesday-Blitz-November-28-2023"]
[Site "Chess.com"]
[Date "2023.11.28"]
[Round "9"]
[White "NotFischer"]
[Black "OneTrickPony_82"]
[Result "0-1"]
[WhiteElo "2355"]
[BlackElo "2492"]
[TimeControl "180+1"]
[EndTime "15:42:37 PST"]
[Termination "OneTrickPony_82 won on time"]

1. e4 {[%clk 0:03:00.9]} 1... e5 {[%clk 0:02:59.9]} 2. f4 {[%clk 0:03:00.3]}
2... d5 {[%clk 0:02:59.2]} 3. exd5 {[%clk 0:02:58.5]} 3... exf4 {[%clk
0:02:58.9]} 4. Nf3 {[%clk 0:02:58]} 4... Nf6 {[%clk 0:02:58.7]} 5. Bc4 {[%clk
0:02:42.1]} 5... Nxd5 {[%clk 0:02:53.9]} 6. O-O {[%clk 0:02:39.6]} 6... Be7
{[%clk 0:02:43.7]} 7. Re1 {[%clk 0:02:35.8]} 7... Nb6 {[%clk 0:02:31.3]} 8. Bb3
{[%clk 0:02:31.9]} 8... Nc6 {[%clk 0:02:28.7]} 9. d4 {[%clk 0:02:24.3]} 9... Na5
{[%clk 0:02:22]} 10. Bxf4 {[%clk 0:02:15.2]} 10... Nxb3 {[%clk 0:02:21.8]} 11.
axb3 {[%clk 0:02:15.9]} 11... Nd5 {[%clk 0:02:11.4]} 12. Bg5 {[%clk 0:02:09.3]}
12... O-O {[%clk 0:01:47.1]} 13. Bxe7 {[%clk 0:02:06.3]} 13... Nxe7 {[%clk
0:01:48]} 14. c4 {[%clk 0:02:05.5]} 14... Ng6 {[%clk 0:01:38.4]} 15. Nc3 {[%clk
0:01:45.1]} 15... Bg4 {[%clk 0:01:37]} 16. d5 {[%clk 0:01:27.1]} 16... Qd6
{[%clk 0:01:36.4]} 17. Kh1 {[%clk 0:01:04.5]} 17... Nh4 {[%clk 0:01:26.8]} 18.
Qd3 {[%clk 0:00:48.9]} 18... Bxf3 {[%clk 0:01:14.8]} 19. gxf3 {[%clk 0:00:49.8]}
19... Rae8 {[%clk 0:01:07.6]} 20. Re4 {[%clk 0:00:32.3]} 20... Qf6 {[%clk
0:00:29.8]} 21. Rf1 {[%clk 0:00:26.5]} 21... a6 {[%clk 0:00:22.2]} 22. Qd4
{[%clk 0:00:22.6]} 22... Qxd4 {[%clk 0:00:17.6]} 23. Rxd4 {[%clk 0:00:23.5]}
23... Nf5 {[%clk 0:00:12.3]} 24. Re4 {[%clk 0:00:23.9]} 24... Nd6 {[%clk
0:00:11.2]} 25. Ree1 {[%clk 0:00:23.1]} 25... Nf5 {[%clk 0:00:09.3]} 26. Ne4
{[%clk 0:00:21.9]} 26... Nd4 {[%clk 0:00:08.9]} 27. Nd2 {[%clk 0:00:14.5]} 27...
f5 {[%clk 0:00:07.1]} 28. Kg2 {[%clk 0:00:14.5]} 28... f4 {[%clk 0:00:05.3]} 29.
Kf2 {[%clk 0:00:14.9]} 29... g5 {[%clk 0:00:03.5]} 30. Rxe8 {[%clk 0:00:14]}
30... Rxe8 {[%clk 0:00:02.9]} 31. Re1 {[%clk 0:00:13.7]} 31... Rxe1 {[%clk
0:00:02.7]} 32. Kxe1 {[%clk 0:00:14.6]} 32... Kf7 {[%clk 0:00:02.5]} 33. Kf2
{[%clk 0:00:14]} 33... Kf6 {[%clk 0:00:02.8]} 34. b4 {[%clk 0:00:14.2]} 34... b6
{[%clk 0:00:02.6]} 35. Ne4+ {[%clk 0:00:13.1]} 35... Kf5 {[%clk 0:00:03]} 36. c5
{[%clk 0:00:11.7]} 36... Nc2 {[%clk 0:00:02.9]} 37. cxb6 {[%clk 0:00:10.3]}
37... cxb6 {[%clk 0:00:03.8]} 38. d6 {[%clk 0:00:10.1]} 38... Nxb4 {[%clk
0:00:04.4]} 39. d7 {[%clk 0:00:10.1]} 39... Nc6 {[%clk 0:00:05.1]} 40. Nd6+
{[%clk 0:00:09.4]} 40... Ke6 {[%clk 0:00:04.5]} 41. Nc4 {[%clk 0:00:08.4]} 41...
Kxd7 {[%clk 0:00:04.7]} 42. Nxb6+ {[%clk 0:00:08.7]} 42... Kc7 {[%clk
0:00:05.4]} 43. Nd5+ {[%clk 0:00:08.5]} 43... Kd6 {[%clk 0:00:05.3]} 44. Nf6
{[%clk 0:00:07.9]} 44... h6 {[%clk 0:00:05.3]} 45. Ng8 {[%clk 0:00:07]} 45...
Ke5 {[%clk 0:00:05]} 46. Nxh6 {[%clk 0:00:06.9]} 46... Nb4 {[%clk 0:00:04.9]}
47. Nf7+ {[%clk 0:00:07.3]} 47... Kf6 {[%clk 0:00:04.6]} 48. Nd6 {[%clk
0:00:07.2]} 48... Nd3+ {[%clk 0:00:03.6]} 49. Ke2 {[%clk 0:00:07.4]} 49... Nxb2
{[%clk 0:00:04.5]} 50. Ne4+ {[%clk 0:00:07.8]} 50... Kg6 {[%clk 0:00:04]} 51.
Kd2 {[%clk 0:00:08.1]} 51... Nc4+ {[%clk 0:00:04.2]} 52. Kc3 {[%clk 0:00:07.9]}
52... Ne5 {[%clk 0:00:05.1]} 53. Nd2 {[%clk 0:00:07.3]} 53... a5 {[%clk
0:00:05]} 54. Kb3 {[%clk 0:00:07.6]} 54... Kh5 {[%clk 0:00:05.4]} 55. Ka4 {[%clk
0:00:07.9]} 55... Kh4 {[%clk 0:00:06.1]} 56. Kxa5 {[%clk 0:00:06.9]} 56... Kh3
{[%clk 0:00:06.7]} 57. Kb4 {[%clk 0:00:04.5]} 57... Kxh2 {[%clk 0:00:06.1]} 58.
Kc5 {[%clk 0:00:05.1]} 58... Kg3 {[%clk 0:00:06.7]} 59. Kd5 {[%clk 0:00:03.7]}
59... Nxf3 {[%clk 0:00:06.3]} 60. Ne4+ {[%clk 0:00:04.3]} 60... Kg4 {[%clk
0:00:06.5]} 61. Nf2+ {[%clk 0:00:02.9]} 61... Kf5 {[%clk 0:00:06.4]} 62. Kc4
{[%clk 0:00:02.1]} 62... g4 {[%clk 0:00:06.7]} 63. Kd3 {[%clk 0:00:02.3]} 63...
g3 {[%clk 0:00:06.8]} 64. Nh3 {[%clk 0:00:01.3]} 64... Kg4 {[%clk 0:00:05.3]}
65. Nxf4 {[%clk 0:00:01.3]} 65... Kxf4 {[%clk 0:00:05.5]} 66. Ke2 {[%clk
0:00:01.8]} 66... g2 {[%clk 0:00:05.8]} 0-1

[Event "Late-Titled-Tuesday-Blitz-November-28-2023"]
[Site "Chess.com"]
[Date "2023.11.28"]
[Round "9"]
[White "dianamirza"]
[Black "cthake"]
[Result "1/2-1/2"]
[WhiteElo "2024"]
[BlackElo "1931"]
[TimeControl "180+1"]
[EndTime "15:42:41 PST"]
[Termination "Game drawn by stalemate"]

1. e4 {[%clk 0:03:00.9]} 1... e6 {[%clk 0:02:58.8]} 2. d3 {[%clk 0:03:00]} 2...
d5 {[%clk 0:02:58.2]} 3. Nd2 {[%clk 0:03:00.9]} 3... Nf6 {[%clk 0:02:57.1]} 4.
Ngf3 {[%clk 0:03:01.3]} 4... c5 {[%clk 0:02:56.7]} 5. g3 {[%clk 0:03:01.6]} 5...
Be7 {[%clk 0:02:56.4]} 6. Bg2 {[%clk 0:03:02.2]} 6... Nc6 {[%clk 0:02:54]} 7.
O-O {[%clk 0:03:03.1]} 7... O-O {[%clk 0:02:49.8]} 8. Re1 {[%clk 0:02:56.8]}
8... b5 {[%clk 0:02:49.5]} 9. h4 {[%clk 0:02:44.3]} 9... Qc7 {[%clk 0:02:43.9]}
10. Qe2 {[%clk 0:02:42.5]} 10... d4 {[%clk 0:02:38.1]} 11. e5 {[%clk 0:02:39.9]}
11... Nd5 {[%clk 0:02:35.7]} 12. Ne4 {[%clk 0:02:36.8]} 12... Nxe5 {[%clk
0:02:22.1]} 13. Nxe5 {[%clk 0:02:18.2]} 13... Qxe5 {[%clk 0:02:22]} 14. Bf4
{[%clk 0:01:40.3]} 14... Qf5 {[%clk 0:02:02]} 15. Nd6 {[%clk 0:01:29.9]} 15...
Bxd6 {[%clk 0:01:57.8]} 16. Bxd6 {[%clk 0:01:30.1]} 16... Rd8 {[%clk 0:01:55.9]}
17. Bxc5 {[%clk 0:01:23.3]} 17... Bb7 {[%clk 0:01:46.2]} 18. Bxd4 {[%clk
0:01:18.8]} 18... Nf4 {[%clk 0:01:40.7]} 19. gxf4 {[%clk 0:00:53.2]} 19... Bxg2
{[%clk 0:01:39.4]} 20. Qe5 {[%clk 0:00:46.8]} 20... Qg4 {[%clk 0:01:23.2]} 21.
Re3 {[%clk 0:00:31.4]} 21... Bf3+ {[%clk 0:01:12.1]} 22. Kf1 {[%clk 0:00:23.1]}
22... Rd5 {[%clk 0:01:06.3]} 23. Qxg7+ {[%clk 0:00:20.7]} 23... Qxg7 {[%clk
0:01:04.7]} 24. Bxg7 {[%clk 0:00:21.6]} 24... Kxg7 {[%clk 0:01:04.3]} 25. Rxf3
{[%clk 0:00:22]} 25... Kf6 {[%clk 0:01:02.9]} 26. Ke2 {[%clk 0:00:22.2]} 26...
Rc8 {[%clk 0:01:02.4]} 27. c3 {[%clk 0:00:21.8]} 27... Rh5 {[%clk 0:00:57]} 28.
Rh3 {[%clk 0:00:20.3]} 28... Kf5 {[%clk 0:00:55.1]} 29. Rg1 {[%clk 0:00:20.3]}
29... b4 {[%clk 0:00:48.4]} 30. Rg5+ {[%clk 0:00:19.5]} 30... Rxg5 {[%clk
0:00:47.5]} 31. fxg5 {[%clk 0:00:17.8]} 31... bxc3 {[%clk 0:00:46.9]} 32. bxc3
{[%clk 0:00:17.1]} 32... Rxc3 {[%clk 0:00:46.5]} 33. Rf3+ {[%clk 0:00:17.3]}
33... Kg6 {[%clk 0:00:45.7]} 34. Rf6+ {[%clk 0:00:17.2]} 34... Kg7 {[%clk
0:00:45.3]} 35. h5 {[%clk 0:00:15.2]} 35... Ra3 {[%clk 0:00:44.9]} 36. h6+
{[%clk 0:00:15.2]} 36... Kg8 {[%clk 0:00:41.2]} 37. Rf4 {[%clk 0:00:14]} 37...
Rxa2+ {[%clk 0:00:41.1]} 38. Ke3 {[%clk 0:00:14.5]} 38... a5 {[%clk 0:00:41.1]}
39. Rc4 {[%clk 0:00:14.2]} 39... Kf8 {[%clk 0:00:38.1]} 40. Rc8+ {[%clk
0:00:14.4]} 40... Ke7 {[%clk 0:00:36.9]} 41. Rh8 {[%clk 0:00:15.2]} 41... a4
{[%clk 0:00:30.3]} 42. Rxh7 {[%clk 0:00:15.6]} 42... Ra1 {[%clk 0:00:30.2]} 43.
Rh8 {[%clk 0:00:16.1]} 43... Rh1 {[%clk 0:00:29.8]} 44. Ra8 {[%clk 0:00:16.5]}
44... Rh3+ {[%clk 0:00:28]} 45. Ke2 {[%clk 0:00:14.5]} 45... Rh4 {[%clk
0:00:22.7]} 46. Ke3 {[%clk 0:00:13.7]} 46... e5 {[%clk 0:00:22]} 47. Ra7+ {[%clk
0:00:10.3]} 47... Ke6 {[%clk 0:00:21]} 48. Ra6+ {[%clk 0:00:10]} 48... Kf5
{[%clk 0:00:21]} 49. h7 {[%clk 0:00:05]} 49... Rxh7 {[%clk 0:00:20.1]} 50. Rxa4
{[%clk 0:00:05]} 50... Kxg5 {[%clk 0:00:18.9]} 51. Ra5 {[%clk 0:00:04.8]} 51...
Kf5 {[%clk 0:00:18.8]} 52. d4 {[%clk 0:00:04.7]} 52... Rh3+ {[%clk 0:00:18.3]}
53. f3 {[%clk 0:00:05.2]} 53... f6 {[%clk 0:00:17.1]} 54. d5 {[%clk 0:00:04.5]}
54... Rh8 {[%clk 0:00:14.5]} 55. d6 {[%clk 0:00:04.6]} 55... Rd8 {[%clk
0:00:14.5]} 56. Ra6 {[%clk 0:00:05.1]} 56... Ke6 {[%clk 0:00:14.3]} 57. f4
{[%clk 0:00:04.7]} 57... Rxd6 {[%clk 0:00:14.4]} 58. Rxd6+ {[%clk 0:00:02.7]}
58... Kxd6 {[%clk 0:00:14.6]} 59. fxe5+ {[%clk 0:00:03.6]} 59... Kxe5 {[%clk
0:00:14.4]} 60. Kf3 {[%clk 0:00:02.9]} 60... f5 {[%clk 0:00:14.7]} 61. Ke3
{[%clk 0:00:03.1]} 61... f4+ {[%clk 0:00:14.2]} 62. Kf3 {[%clk 0:00:03.6]} 62...
Kf5 {[%clk 0:00:14.7]} 63. Kf2 {[%clk 0:00:04.1]} 63... Ke4 {[%clk 0:00:15.1]}
64. Ke2 {[%clk 0:00:04.5]} 64... f3+ {[%clk 0:00:14.9]} 65. Kf2 {[%clk
0:00:05.1]} 65... Kf4 {[%clk 0:00:15.3]} 66. Kf1 {[%clk 0:00:05.4]} 66... Kg3
{[%clk 0:00:15.6]} 67. Kg1 {[%clk 0:00:06]} 67... Kh3 {[%clk 0:00:14.6]} 68. Kf2
{[%clk 0:00:04.4]} 68... Kg4 {[%clk 0:00:14.8]} 69. Kf1 {[%clk 0:00:04.7]} 69...
Kf5 {[%clk 0:00:14.8]} 70. Kf2 {[%clk 0:00:05.1]} 70... Ke4 {[%clk 0:00:15.2]}
71. Kf1 {[%clk 0:00:05.6]} 71... Kd3 {[%clk 0:00:14.9]} 72. Kf2 {[%clk
0:00:05.8]} 72... Ke4 {[%clk 0:00:15.3]} 73. Kf1 {[%clk 0:00:06.2]} 73... Ke3
{[%clk 0:00:15.8]} 74. Ke1 {[%clk 0:00:06.6]} 74... f2+ {[%clk 0:00:16]} 75. Kf1
{[%clk 0:00:07.2]} 75... Kf3 {[%clk 0:00:16.4]} 1/2-1/2

[Event "Late-Titled-Tuesday-Blitz-November-28-2023"]
[Site "Chess.com"]
[Date "2023.11.28"]
[Round "9"]
[White "Zavgorodniy_Sergiy"]
[Black "StellarChessPro"]
[Result "1/2-1/2"]
[WhiteElo "2647"]
[BlackElo "2527"]
[TimeControl "180+1"]
[EndTime "15:43:12 PST"]
[Termination "Game drawn by stalemate"]

1. d4 {[%clk 0:02:59.3]} 1... a6 {[%clk 0:02:59.5]} 2. c4 {[%clk 0:02:58.2]}
2... c6 {[%clk 0:02:59.8]} 3. Nc3 {[%clk 0:02:57.3]} 3... d5 {[%clk 0:03:00.7]}
4. e3 {[%clk 0:02:55.4]} 4... Nf6 {[%clk 0:03:00.6]} 5. Nf3 {[%clk 0:02:55]}
5... e6 {[%clk 0:03:01.2]} 6. b3 {[%clk 0:02:50.3]} 6... Bb4 {[%clk 0:02:58.6]}
7. Bd2 {[%clk 0:02:48.7]} 7... Bxc3 {[%clk 0:02:58.6]} 8. Bxc3 {[%clk
0:02:48.6]} 8... Ne4 {[%clk 0:02:59.5]} 9. Bb2 {[%clk 0:02:47.2]} 9... O-O
{[%clk 0:02:58]} 10. Bd3 {[%clk 0:02:46.5]} 10... f5 {[%clk 0:02:58.6]} 11. O-O
{[%clk 0:02:45.9]} 11... Nd7 {[%clk 0:02:58.7]} 12. Qc2 {[%clk 0:02:41.7]} 12...
Ndf6 {[%clk 0:02:59.2]} 13. Ne5 {[%clk 0:02:41.8]} 13... Bd7 {[%clk 0:02:52.4]}
14. f3 {[%clk 0:02:41.4]} 14... Nd6 {[%clk 0:02:52.5]} 15. e4 {[%clk 0:02:40.6]}
15... fxe4 {[%clk 0:02:50.5]} 16. fxe4 {[%clk 0:02:40.7]} 16... dxe4 {[%clk
0:02:50.1]} 17. Be2 {[%clk 0:02:39.3]} 17... Be8 {[%clk 0:02:26.3]} 18. Ba3
{[%clk 0:02:35.9]} 18... Nf5 {[%clk 0:02:21.1]} 19. Bxf8 {[%clk 0:02:29.7]}
19... Qxd4+ {[%clk 0:02:10.1]} 20. Kh1 {[%clk 0:02:29]} 20... Ne3 {[%clk
0:01:58.6]} 21. Qc1 {[%clk 0:01:35.6]} 21... Nxf1 {[%clk 0:01:57]} 22. Ba3
{[%clk 0:01:27.4]} 22... Ng3+ {[%clk 0:01:45.4]} 23. hxg3 {[%clk 0:01:28.3]}
23... Qxe5 {[%clk 0:01:46]} 24. Kh2 {[%clk 0:01:24.7]} 24... Bh5 {[%clk
0:01:25.3]} 25. Bb2 {[%clk 0:01:22]} 25... Qf5 {[%clk 0:01:21.8]} 26. Bxf6
{[%clk 0:01:10.4]} 26... gxf6 {[%clk 0:00:55.5]} 27. Qe3 {[%clk 0:01:07]} 27...
Rf8 {[%clk 0:00:52.1]} 28. Re1 {[%clk 0:01:04.3]} 28... Qg6 {[%clk 0:00:49.2]}
29. Bxh5 {[%clk 0:01:01.4]} 29... Qxh5+ {[%clk 0:00:49.5]} 30. Kg1 {[%clk
0:01:02.1]} 30... f5 {[%clk 0:00:47.7]} 31. Qf4 {[%clk 0:00:59.6]} 31... Qf7
{[%clk 0:00:45.6]} 32. g4 {[%clk 0:00:57.5]} 32... Qg6 {[%clk 0:00:45.3]} 33.
gxf5 {[%clk 0:00:55.5]} 33... exf5 {[%clk 0:00:44.5]} 34. Re3 {[%clk 0:00:51.7]}
34... Qf6 {[%clk 0:00:41.2]} 35. Kh2 {[%clk 0:00:47.5]} 35... Kh8 {[%clk
0:00:40]} 36. g4 {[%clk 0:00:45.7]} 36... Qh4+ {[%clk 0:00:34.1]} 37. Kg2 {[%clk
0:00:41.7]} 37... Qxg4+ {[%clk 0:00:23.4]} 38. Qxg4 {[%clk 0:00:39.3]} 38...
fxg4 {[%clk 0:00:24.3]} 39. Rxe4 {[%clk 0:00:40]} 39... h5 {[%clk 0:00:24]} 40.
Re5 {[%clk 0:00:37.8]} 40... Kg7 {[%clk 0:00:22.4]} 41. Rxh5 {[%clk 0:00:36.4]}
41... Rd8 {[%clk 0:00:23]} 42. Rg5+ {[%clk 0:00:31.2]} 42... Kf6 {[%clk
0:00:23.2]} 43. Rxg4 {[%clk 0:00:32.1]} 43... Rd2+ {[%clk 0:00:23]} 44. Kf3
{[%clk 0:00:30.7]} 44... Rxa2 {[%clk 0:00:23.9]} 45. Ke4 {[%clk 0:00:28.9]}
45... Rb2 {[%clk 0:00:22.7]} 46. Rg3 {[%clk 0:00:26.6]} 46... Ke6 {[%clk
0:00:23.1]} 47. Kd4 {[%clk 0:00:26]} 47... Kd6 {[%clk 0:00:23.4]} 48. c5+ {[%clk
0:00:24.3]} 48... Kc7 {[%clk 0:00:23.5]} 49. Kc3 {[%clk 0:00:23.6]} 49... Rf2
{[%clk 0:00:23]} 50. Kb4 {[%clk 0:00:20.7]} 50... Kb8 {[%clk 0:00:23]} 51. Ka4
{[%clk 0:00:18.9]} 51... Ka7 {[%clk 0:00:22.3]} 52. b4 {[%clk 0:00:19.1]} 52...
Ra2+ {[%clk 0:00:19.2]} 53. Kb3 {[%clk 0:00:19]} 53... Ra1 {[%clk 0:00:19.6]}
54. Rg7 {[%clk 0:00:18.6]} 54... Rf1 {[%clk 0:00:18.9]} 55. Ka4 {[%clk
0:00:18.2]} 55... Rd1 {[%clk 0:00:18.9]} 56. Kb3 {[%clk 0:00:18.4]} 56... Rd3+
{[%clk 0:00:18.7]} 57. Kc4 {[%clk 0:00:18.6]} 57... Rd8 {[%clk 0:00:19.6]} 58.
Kb3 {[%clk 0:00:18.8]} 58... Kb8 {[%clk 0:00:19.6]} 59. Ka4 {[%clk 0:00:19]}
59... Rc8 {[%clk 0:00:18.9]} 60. Ka5 {[%clk 0:00:19]} 60... Ka7 {[%clk
0:00:19.5]} 61. Rf7 {[%clk 0:00:18.9]} 61... Rg8 {[%clk 0:00:19.7]} 62. Ka4
{[%clk 0:00:19.2]} 62... Rg1 {[%clk 0:00:20.3]} 63. Kb3 {[%clk 0:00:19.4]} 63...
Ra1 {[%clk 0:00:20.6]} 64. Kb2 {[%clk 0:00:19.4]} 64... Ra4 {[%clk 0:00:20.8]}
65. Kb3 {[%clk 0:00:19.9]} 65... Ra1 {[%clk 0:00:21.3]} 66. Kb2 {[%clk
0:00:20.4]} 66... Re1 {[%clk 0:00:21.8]} 67. Kc3 {[%clk 0:00:20.6]} 67... Re4
{[%clk 0:00:21.7]} 68. Rf8 {[%clk 0:00:20.4]} 68... a5 {[%clk 0:00:20.6]} 69.
bxa5 {[%clk 0:00:19.2]} 69... Ka6 {[%clk 0:00:21]} 70. Ra8+ {[%clk 0:00:18.9]}
70... Kb5 {[%clk 0:00:21.6]} 71. Ra7 {[%clk 0:00:19.3]} 71... Kxc5 {[%clk
0:00:21.5]} 72. Rxb7 {[%clk 0:00:19.2]} 72... Ra4 {[%clk 0:00:21.7]} 73. Ra7
{[%clk 0:00:17.7]} 73... Kb5 {[%clk 0:00:22.3]} 74. a6 {[%clk 0:00:16.4]} 74...
Rxa6 {[%clk 0:00:19]} 75. Rxa6 {[%clk 0:00:15.3]} 75... Kxa6 {[%clk 0:00:19.9]}
76. Kc4 {[%clk 0:00:15.7]} 76... Kb6 {[%clk 0:00:20.8]} 77. Kb4 {[%clk
0:00:10.2]} 77... c5+ {[%clk 0:00:21.2]} 78. Kc4 {[%clk 0:00:04.9]} 78... Kc6
{[%clk 0:00:22.1]} 79. Kc3 {[%clk 0:00:04.9]} 79... Kd5 {[%clk 0:00:22.6]} 80.
Kd3 {[%clk 0:00:04.8]} 80... Kc6 {[%clk 0:00:21.7]} 81. Kc4 {[%clk 0:00:04.7]}
81... Kb6 {[%clk 0:00:22.6]} 82. Kc3 {[%clk 0:00:05]} 82... Kb5 {[%clk
0:00:23.5]} 83. Kb3 {[%clk 0:00:05.3]} 83... c4+ {[%clk 0:00:24.4]} 84. Kc3
{[%clk 0:00:05.5]} 84... Kc5 {[%clk 0:00:25.3]} 85. Kc2 {[%clk 0:00:05.9]} 85...
Kb4 {[%clk 0:00:26.2]} 86. Kb2 {[%clk 0:00:05.7]} 86... Kc5 {[%clk 0:00:27.1]}
87. Kc3 {[%clk 0:00:05.7]} 87... Kd5 {[%clk 0:00:27.7]} 88. Kc2 {[%clk 0:00:06]}
88... Kd4 {[%clk 0:00:28.6]} 89. Kd2 {[%clk 0:00:06.3]} 89... Kc5 {[%clk
0:00:28.8]} 90. Kc3 {[%clk 0:00:06.7]} 90... Kb5 {[%clk 0:00:29.5]} 91. Kc2
{[%clk 0:00:07.3]} 91... Kb4 {[%clk 0:00:30.4]} 92. Kb2 {[%clk 0:00:07.5]} 92...
c3+ {[%clk 0:00:31.3]} 93. Kc2 {[%clk 0:00:07.8]} 93... Kc4 {[%clk 0:00:32.2]}
94. Kc1 {[%clk 0:00:07.8]} 94... Kd3 {[%clk 0:00:32.6]} 95. Kd1 {[%clk
0:00:08.1]} 95... Kc4 {[%clk 0:00:33.1]} 96. Kc2 {[%clk 0:00:08.2]} 96... Kb4
{[%clk 0:00:33.6]} 97. Kc1 {[%clk 0:00:07.8]} 97... Kb3 {[%clk 0:00:34.5]} 98.
Kb1 {[%clk 0:00:07.9]} 98... c2+ {[%clk 0:00:34.9]} 99. Kc1 {[%clk 0:00:07.8]}
99... Kc3 {[%clk 0:00:35.8]} 1/2-1/2

[Event "Late-Titled-Tuesday-Blitz-November-28-2023"]
[Site "Chess.com"]
[Date "2023.11.28"]
[Round "9"]
[White "wanyaland"]
[Black "Heinza9"]
[Result "0-1"]
[WhiteElo "2434"]
[BlackElo "2351"]
[TimeControl "180+1"]
[EndTime "15:43:23 PST"]
[Termination "Heinza9 won by checkmate"]

1. d4 {[%clk 0:02:32]} 1... f5 {[%clk 0:02:57.1]} 2. g3 {[%clk 0:02:30.9]} 2...
Nf6 {[%clk 0:02:57.1]} 3. Bg2 {[%clk 0:02:31.5]} 3... g6 {[%clk 0:02:57.6]} 4.
Nf3 {[%clk 0:02:31.6]} 4... Bg7 {[%clk 0:02:58]} 5. O-O {[%clk 0:02:32.5]} 5...
O-O {[%clk 0:02:58.2]} 6. c4 {[%clk 0:02:32.3]} 6... d6 {[%clk 0:02:58.6]} 7.
Nc3 {[%clk 0:02:32.3]} 7... Qe8 {[%clk 0:02:58.2]} 8. Rb1 {[%clk 0:02:32.2]}
8... c6 {[%clk 0:02:54.3]} 9. b4 {[%clk 0:02:31.6]} 9... e5 {[%clk 0:02:54.5]}
10. b5 {[%clk 0:02:26]} 10... e4 {[%clk 0:02:53.7]} 11. Ne1 {[%clk 0:02:21.8]}
11... d5 {[%clk 0:02:53.7]} 12. bxc6 {[%clk 0:02:19.9]} 12... bxc6 {[%clk
0:02:53.5]} 13. Ba3 {[%clk 0:02:18.5]} 13... Rf7 {[%clk 0:02:52.7]} 14. cxd5
{[%clk 0:02:16.9]} 14... cxd5 {[%clk 0:02:52.7]} 15. Nb5 {[%clk 0:02:16.4]}
15... Bf8 {[%clk 0:02:42.9]} 16. Bxf8 {[%clk 0:02:14.8]} 16... Qxf8 {[%clk
0:02:39.8]} 17. Nc2 {[%clk 0:02:08]} 17... Nc6 {[%clk 0:02:27.1]} 18. Ne3 {[%clk
0:01:59.6]} 18... Be6 {[%clk 0:02:23.6]} 19. Qd2 {[%clk 0:01:57.5]} 19... Rb7
{[%clk 0:02:16.4]} 20. Rfc1 {[%clk 0:01:57.1]} 20... Nd8 {[%clk 0:01:52.9]} 21.
Nc7 {[%clk 0:01:51.2]} 21... Rxb1 {[%clk 0:01:52.6]} 22. Rxb1 {[%clk 0:01:51.4]}
22... Rc8 {[%clk 0:01:43]} 23. Nxe6 {[%clk 0:01:50.3]} 23... Nxe6 {[%clk
0:01:43.2]} 24. Rb7 {[%clk 0:01:47.9]} 24... Rc7 {[%clk 0:01:41.3]} 25. Rxc7
{[%clk 0:01:46.6]} 25... Nxc7 {[%clk 0:01:40.7]} 26. Qa5 {[%clk 0:01:47.2]}
26... Qb8 {[%clk 0:01:37.3]} 27. h3 {[%clk 0:01:43.7]} 27... Qb6 {[%clk
0:01:32.7]} 28. Qxb6 {[%clk 0:01:19.7]} 28... axb6 {[%clk 0:01:32.4]} 29. Nc2
{[%clk 0:01:20.6]} 29... Kf7 {[%clk 0:01:29.7]} 30. e3 {[%clk 0:01:20.8]} 30...
Ke6 {[%clk 0:01:29.4]} 31. Bf1 {[%clk 0:01:21]} 31... Kd6 {[%clk 0:01:29]} 32.
Nb4 {[%clk 0:01:20.3]} 32... Nd7 {[%clk 0:01:20.8]} 33. Be2 {[%clk 0:01:18.1]}
33... b5 {[%clk 0:01:19.5]} 34. Kf1 {[%clk 0:01:16.7]} 34... Nb6 {[%clk
0:01:19.7]} 35. Ke1 {[%clk 0:01:16.7]} 35... Nc4 {[%clk 0:01:17.3]} 36. Kd1
{[%clk 0:01:15.5]} 36... Na8 {[%clk 0:01:10.5]} 37. Na6 {[%clk 0:01:07]} 37...
Nab6 {[%clk 0:01:05.9]} 38. Nc5 {[%clk 0:01:05.1]} 38... Nd7 {[%clk 0:00:49.8]}
39. Nb3 {[%clk 0:00:59.8]} 39... Ndb6 {[%clk 0:00:48.3]} 40. Kc2 {[%clk
0:00:54.8]} 40... Na4 {[%clk 0:00:48.2]} 41. h4 {[%clk 0:00:54.3]} 41... Kc6
{[%clk 0:00:47]} 42. g4 {[%clk 0:00:50.4]} 42... b4 {[%clk 0:00:36.4]} 43. g5
{[%clk 0:00:43.4]} 43... Na3+ {[%clk 0:00:28.7]} 44. Kd2 {[%clk 0:00:37.6]}
44... Nc3 {[%clk 0:00:28.8]} 45. Nc1 {[%clk 0:00:32.3]} 45... Nc4+ {[%clk
0:00:25.7]} 46. Kc2 {[%clk 0:00:25.8]} 46... Kb5 {[%clk 0:00:19.8]} 47. Kb3
{[%clk 0:00:20.1]} 47... Nxe2 {[%clk 0:00:16.6]} 48. Nxe2 {[%clk 0:00:19.9]}
48... Nd2+ {[%clk 0:00:16.9]} 49. Kc2 {[%clk 0:00:19.9]} 49... Nf3 {[%clk
0:00:17.1]} 50. Nf4 {[%clk 0:00:19.9]} 50... Kc4 {[%clk 0:00:16]} 51. h5 {[%clk
0:00:19]} 51... gxh5 {[%clk 0:00:14]} 52. Nxh5 {[%clk 0:00:19]} 52... Nxg5
{[%clk 0:00:14.4]} 53. Nf6 {[%clk 0:00:17.5]} 53... Nh3 {[%clk 0:00:14.1]} 54.
Nxh7 {[%clk 0:00:13.2]} 54... Nxf2 {[%clk 0:00:14.2]} 55. Ng5 {[%clk 0:00:13.2]}
55... Ng4 {[%clk 0:00:13.5]} 56. Kd2 {[%clk 0:00:12.6]} 56... b3 {[%clk
0:00:12.9]} 57. axb3+ {[%clk 0:00:12.9]} 57... Kxb3 {[%clk 0:00:13.2]} 58. Ne6
{[%clk 0:00:13]} 58... Kc4 {[%clk 0:00:13.1]} 59. Nc7 {[%clk 0:00:11.2]} 59...
f4 {[%clk 0:00:11.3]} 60. exf4 {[%clk 0:00:11.1]} 60... Kxd4 {[%clk 0:00:11.7]}
61. Ne6+ {[%clk 0:00:11.1]} 61... Kc4 {[%clk 0:00:10.5]} 62. f5 {[%clk 0:00:11]}
62... d4 {[%clk 0:00:10.2]} 63. Ke2 {[%clk 0:00:11]} 63... Kd5 {[%clk
0:00:09.5]} 64. Ng7 {[%clk 0:00:09.8]} 64... Ke5 {[%clk 0:00:09.2]} 65. f6
{[%clk 0:00:09.3]} 65... Nxf6 {[%clk 0:00:08.5]} 66. Kd2 {[%clk 0:00:06.3]}
66... d3 {[%clk 0:00:06.1]} 67. Ke3 {[%clk 0:00:06.1]} 67... Nd5+ {[%clk
0:00:05.4]} 68. Kd2 {[%clk 0:00:06.1]} 68... Kf4 {[%clk 0:00:05]} 69. Ne6+
{[%clk 0:00:06.1]} 69... Kf3 {[%clk 0:00:04.8]} 70. Nc5 {[%clk 0:00:06.2]} 70...
Nf4 {[%clk 0:00:03.2]} 71. Kc3 {[%clk 0:00:03.7]} 71... e3 {[%clk 0:00:02.2]}
72. Nxd3 {[%clk 0:00:03.2]} 72... Nxd3 {[%clk 0:00:02.4]} 73. Kxd3 {[%clk
0:00:04.1]} 73... e2 {[%clk 0:00:02.8]} 74. Kd2 {[%clk 0:00:04.3]} 74... Kf2
{[%clk 0:00:03.2]} 75. Kd3 {[%clk 0:00:04.9]} 75... e1=Q {[%clk 0:00:03.2]} 76.
Kc4 {[%clk 0:00:05.8]} 76... Qe5 {[%clk 0:00:03.3]} 77. Kd3 {[%clk 0:00:05.7]}
77... Kf3 {[%clk 0:00:03.4]} 78. Kd2 {[%clk 0:00:05.9]} 78... Ke4 {[%clk
0:00:03.5]} 79. Kc2 {[%clk 0:00:06.8]} 79... Qd4 {[%clk 0:00:03.5]} 80. Kb3
{[%clk 0:00:06.7]} 80... Qc5 {[%clk 0:00:03.3]} 81. Ka2 {[%clk 0:00:07.6]} 81...
Kd3 {[%clk 0:00:03.4]} 82. Kb2 {[%clk 0:00:07.3]} 82... Qb4+ {[%clk 0:00:03.5]}
83. Ka2 {[%clk 0:00:07.4]} 83... Kc2 {[%clk 0:00:03.1]} 84. Ka1 {[%clk
0:00:08.3]} 84... Qa3# {[%clk 0:00:03.5]} 0-1